[Event "*** Titled Tuesday Blitz"]
[Site "Chess.com"]
[Date "2020.05.12"]
[Round "5"]
[White "Robert_Chessmood"]
[Black "Vuk2000"]
[Result "1-0"]
[WhiteElo "2953"]
[BlackElo "2625"]
[TimeControl "180+1"]
[EndTime "10:56:29 PDT"]
[Termination "Robert_Chessmood won by checkmate"]

1. e4 {[%clk 0:03:00.9]} 1... e6 {[%clk 0:02:59.9]} 2. d4 {[%clk 0:03:00.8]}
2... d5 {[%clk 0:03:00.3]} 3. Nc3 {[%clk 0:03:01.5]} 3... Bb4 {[%clk 0:03:00.6]}
4. e5 {[%clk 0:03:01.4]} 4... c5 {[%clk 0:03:00.7]} 5. dxc5 {[%clk 0:03:01.2]}
5... Bxc3+ {[%clk 0:02:47.3]} 6. bxc3 {[%clk 0:03:00.5]} 6... Ne7 {[%clk
0:02:47.5]} 7. Nf3 {[%clk 0:02:59.3]} 7... Nd7 {[%clk 0:02:40.3]} 8. Bd3 {[%clk
0:02:53.8]} 8... Nxc5 {[%clk 0:02:36]} 9. O-O {[%clk 0:02:53.8]} 9... Bd7 {[%clk
0:02:31.4]} 10. Be3 {[%clk 0:02:50.8]} 10... Rc8 {[%clk 0:02:25.7]} 11. Rb1
{[%clk 0:02:49.1]} 11... b6 {[%clk 0:02:12.1]} 12. Bxc5 {[%clk 0:02:40.9]} 12...
Rxc5 {[%clk 0:02:04.1]} 13. Rb4 {[%clk 0:02:35.1]} 13... Rxc3 {[%clk 0:01:26.2]}
14. Rg4 {[%clk 0:02:34.8]} 14... g6 {[%clk 0:01:23.3]} 15. Qd2 {[%clk
0:02:33.3]} 15... h5 {[%clk 0:01:22.2]} 16. Rf4 {[%clk 0:02:23.8]} 16... Rc5
{[%clk 0:01:07.6]} 17. Rf6 {[%clk 0:02:15.9]} 17... Ng8 {[%clk 0:01:03.9]} 18.
Rxg6 {[%clk 0:01:58.1]} 18... fxg6 {[%clk 0:01:02.9]} 19. Bxg6+ {[%clk 0:01:59]}
19... Kf8 {[%clk 0:00:59.8]} 20. Qf4+ {[%clk 0:01:59.1]} 20... Kg7 {[%clk
0:01:00]} 21. Qf7+ {[%clk 0:01:57.5]} 21... Kh6 {[%clk 0:01:00.3]} 22. Bxh5
{[%clk 0:01:23.8]} 22... Be8 {[%clk 0:00:31.9]} 23. Qxe6+ {[%clk 0:00:26.7]}
23... Nf6 {[%clk 0:00:22]} 24. exf6 {[%clk 0:00:09.4]} 24... Bxh5 {[%clk
0:00:21.3]} 25. f7+ {[%clk 0:00:09.6]} 25... Kg7 {[%clk 0:00:21.3]} 26. Nd4
{[%clk 0:00:06.6]} 26... Bg6 {[%clk 0:00:17.3]} 27. Re1 {[%clk 0:00:05.6]} 27...
Qf6 {[%clk 0:00:14.3]} 28. Qd7 {[%clk 0:00:04.7]} 28... Qxf7 {[%clk 0:00:10]}
29. Ne6+ {[%clk 0:00:04.5]} 29... Kh6 {[%clk 0:00:10.5]} 30. Nxc5 {[%clk
0:00:04.9]} 30... bxc5 {[%clk 0:00:08.6]} 31. Qh3+ {[%clk 0:00:04.9]} 31... Kg7
{[%clk 0:00:08.8]} 32. Qc3+ {[%clk 0:00:05.5]} 32... d4 {[%clk 0:00:09.3]} 33.
Qxc5 {[%clk 0:00:05.6]} 33... Rd8 {[%clk 0:00:09.1]} 34. Re7 {[%clk 0:00:03]}
34... d3 {[%clk 0:00:06.6]} 35. Rxf7+ {[%clk 0:00:02.8]} 35... Kxf7 {[%clk
0:00:06.8]} 36. cxd3 {[%clk 0:00:03.7]} 36... Rxd3 {[%clk 0:00:06.5]} 37. h3
{[%clk 0:00:03.9]} 37... Rd7 {[%clk 0:00:06.7]} 38. Kh2 {[%clk 0:00:03.7]} 38...
Kg7 {[%clk 0:00:05.6]} 39. f3 {[%clk 0:00:04.2]} 39... Bf7 {[%clk 0:00:04.5]}
40. Qc3+ {[%clk 0:00:04.6]} 40... Kg8 {[%clk 0:00:04.2]} 41. a3 {[%clk
0:00:05.5]} 41... Rd5 {[%clk 0:00:03.7]} 42. Qc8+ {[%clk 0:00:05.4]} 42... Kg7
{[%clk 0:00:03.7]} 43. Qc3+ {[%clk 0:00:06.3]} 43... Kg8 {[%clk 0:00:03.7]} 44.
h4 {[%clk 0:00:06.8]} 44... a5 {[%clk 0:00:04.6]} 45. Qc8+ {[%clk 0:00:06.6]}
45... Kg7 {[%clk 0:00:04.7]} 46. Qc3+ {[%clk 0:00:07.5]} 46... Kg8 {[%clk
0:00:05.6]} 47. g4 {[%clk 0:00:08.1]} 47... Kh7 {[%clk 0:00:05.1]} 48. Qc2+
{[%clk 0:00:07.6]} 48... Kg7 {[%clk 0:00:05.3]} 49. Qc3+ {[%clk 0:00:08.5]}
49... Kh7 {[%clk 0:00:05.5]} 50. Kg3 {[%clk 0:00:09]} 50... Bg6 {[%clk
0:00:03.4]} 51. Qc7+ {[%clk 0:00:08.8]} 51... Kh6 {[%clk 0:00:02.7]} 52. Qc3
{[%clk 0:00:09.7]} 52... Kh7 {[%clk 0:00:02]} 53. h5 {[%clk 0:00:09.7]} 53...
Bf7 {[%clk 0:00:02.9]} 54. Qc2+ {[%clk 0:00:09.8]} 54... Kg8 {[%clk 0:00:03.4]}
55. Qc3 {[%clk 0:00:10.7]} 55... Rd7 {[%clk 0:00:03.7]} 56. h6 {[%clk
0:00:10.2]} 56... Rd5 {[%clk 0:00:04.6]} 57. Qg7# {[%clk 0:00:10]} 1-0

[Event "*** Titled Tuesday Blitz"]
[Site "Chess.com"]
[Date "2020.05.12"]
[Round "5"]
[White "Baronessa08"]
[Black "RianKapriaga"]
[Result "1/2-1/2"]
[WhiteElo "2457"]
[BlackElo "2227"]
[TimeControl "180+1"]
[EndTime "10:56:29 PDT"]
[Termination "Game drawn by repetition"]

1. c4 {[%clk 0:03:00.9]} 1... e5 {[%clk 0:02:58.2]} 2. g3 {[%clk 0:02:58.6]}
2... Nc6 {[%clk 0:02:58.2]} 3. Bg2 {[%clk 0:02:57.6]} 3... g6 {[%clk 0:02:58.6]}
4. Nc3 {[%clk 0:02:57.2]} 4... Bg7 {[%clk 0:02:58.9]} 5. Nf3 {[%clk 0:02:55]}
5... d6 {[%clk 0:02:58.8]} 6. O-O {[%clk 0:02:52.7]} 6... h6 {[%clk 0:02:57.6]}
7. e3 {[%clk 0:02:52.1]} 7... Be6 {[%clk 0:02:57.3]} 8. Nd5 {[%clk 0:02:41.3]}
8... Nce7 {[%clk 0:02:55.8]} 9. Ne1 {[%clk 0:02:33.6]} 9... c6 {[%clk
0:02:55.1]} 10. Nxe7 {[%clk 0:02:31.2]} 10... Nxe7 {[%clk 0:02:54.2]} 11. b3
{[%clk 0:02:28.7]} 11... Qd7 {[%clk 0:02:53.1]} 12. Bb2 {[%clk 0:02:28.2]} 12...
Bh3 {[%clk 0:02:52.1]} 13. f4 {[%clk 0:02:28]} 13... h5 {[%clk 0:02:47.9]} 14.
Nf3 {[%clk 0:02:18.7]} 14... Bxg2 {[%clk 0:02:41.9]} 15. Kxg2 {[%clk 0:02:17.7]}
15... h4 {[%clk 0:02:41.8]} 16. Nxh4 {[%clk 0:02:12.1]} 16... O-O-O {[%clk
0:02:41.1]} 17. Kg1 {[%clk 0:01:54.5]} 17... Rh7 {[%clk 0:02:38.3]} 18. Nf3
{[%clk 0:01:50.8]} 18... Rdh8 {[%clk 0:02:29.6]} 19. fxe5 {[%clk 0:01:38.5]}
19... dxe5 {[%clk 0:02:29.4]} 20. Bxe5 {[%clk 0:01:30.6]} 20... Bxe5 {[%clk
0:02:15.8]} 21. Nxe5 {[%clk 0:01:29.8]} 21... Qe6 {[%clk 0:02:15.6]} 22. Nf3
{[%clk 0:01:14.3]} 22... Qg4 {[%clk 0:02:06.7]} 23. Qe1 {[%clk 0:01:06.3]} 23...
Nf5 {[%clk 0:02:00.6]} 24. Qf2 {[%clk 0:01:06.4]} 24... Rh3 {[%clk 0:01:49.5]}
25. Ne5 {[%clk 0:00:53.1]} 25... Qe4 {[%clk 0:01:49]} 26. Nf3 {[%clk 0:00:38.8]}
26... Nxg3 {[%clk 0:01:35.7]} 27. Qxg3 {[%clk 0:00:20.4]} 27... Rxg3+ {[%clk
0:01:34.1]} 28. hxg3 {[%clk 0:00:21.3]} 28... Qg4 {[%clk 0:01:29]} 29. Kf2
{[%clk 0:00:18.7]} 29... Rh5 {[%clk 0:01:18.6]} 30. d3 {[%clk 0:00:14.5]} 30...
Rf5 {[%clk 0:01:01.6]} 31. Kg2 {[%clk 0:00:14.2]} 31... Rh5 {[%clk 0:00:59.8]}
32. Rh1 {[%clk 0:00:13.9]} 32... Qd7 {[%clk 0:00:49.1]} 33. Rxh5 {[%clk
0:00:13]} 33... gxh5 {[%clk 0:00:49.1]} 34. d4 {[%clk 0:00:12.6]} 34... Qe7
{[%clk 0:00:46.4]} 35. Kf2 {[%clk 0:00:10.6]} 35... Qe4 {[%clk 0:00:45.4]} 36.
Re1 {[%clk 0:00:10.6]} 36... Qc2+ {[%clk 0:00:45.2]} 37. Re2 {[%clk 0:00:10.8]}
37... Qf5 {[%clk 0:00:45.5]} 38. Kg2 {[%clk 0:00:10.3]} 38... a5 {[%clk
0:00:44.3]} 39. Ne5 {[%clk 0:00:09.9]} 39... f6 {[%clk 0:00:42.1]} 40. Nf3
{[%clk 0:00:10.1]} 40... Qe4 {[%clk 0:00:41.7]} 41. Kf2 {[%clk 0:00:10.4]} 41...
Kb8 {[%clk 0:00:40.1]} 42. Nd2 {[%clk 0:00:10.4]} 42... Qf5+ {[%clk 0:00:39.2]}
43. Nf3 {[%clk 0:00:10.6]} 43... Qe4 {[%clk 0:00:38.4]} 44. Nd2 {[%clk
0:00:10.4]} 44... Qf5+ {[%clk 0:00:37.8]} 45. Nf3 {[%clk 0:00:10.5]} 45... Qh3
{[%clk 0:00:33.2]} 46. e4 {[%clk 0:00:10.5]} 46... Kc7 {[%clk 0:00:32.5]} 47. e5
{[%clk 0:00:10.7]} 47... fxe5 {[%clk 0:00:32.2]} 48. dxe5 {[%clk 0:00:11.6]}
48... Qe6 {[%clk 0:00:31.8]} 49. Ng5 {[%clk 0:00:09.6]} 49... Qf5+ {[%clk
0:00:31.7]} 50. Nf3 {[%clk 0:00:09.4]} 50... Qe6 {[%clk 0:00:31.5]} 51. Ng5
{[%clk 0:00:09.3]} 51... Qf5+ {[%clk 0:00:31.9]} 52. Nf3 {[%clk 0:00:09.8]}
52... Qe6 {[%clk 0:00:32.2]} 1/2-1/2

[Event "*** Titled Tuesday Blitz"]
[Site "Chess.com"]
[Date "2020.05.12"]
[Round "5"]
[White "GukeshDommaraju"]
[Black "SirMittensofMittensville"]
[Result "0-1"]
[WhiteElo "2731"]
[BlackElo "2585"]
[TimeControl "180+1"]
[EndTime "10:56:30 PDT"]
[Termination "SirMittensofMittensville won by resignation"]

1. e4 {[%clk 0:03:00.9]} 1... e5 {[%clk 0:02:58.9]} 2. Nf3 {[%clk 0:03:01]} 2...
Nc6 {[%clk 0:02:59.5]} 3. Bb5 {[%clk 0:03:00.9]} 3... a6 {[%clk 0:03:00.1]} 4.
Ba4 {[%clk 0:03:00.4]} 4... Nf6 {[%clk 0:03:00.7]} 5. O-O {[%clk 0:02:59.7]}
5... b5 {[%clk 0:03:01.6]} 6. Bb3 {[%clk 0:02:59.2]} 6... Bc5 {[%clk 0:03:02.5]}
7. c3 {[%clk 0:02:57.6]} 7... d6 {[%clk 0:03:03]} 8. d4 {[%clk 0:02:46.2]} 8...
Bb6 {[%clk 0:03:03.2]} 9. a4 {[%clk 0:02:42.4]} 9... Rb8 {[%clk 0:03:02.6]} 10.
a5 {[%clk 0:02:41.8]} 10... Ba7 {[%clk 0:03:02.4]} 11. h3 {[%clk 0:02:41.6]}
11... h6 {[%clk 0:03:01.6]} 12. Be3 {[%clk 0:02:37.4]} 12... Ra8 {[%clk
0:03:00.3]} 13. Re1 {[%clk 0:02:26.2]} 13... O-O {[%clk 0:03:00.4]} 14. Nbd2
{[%clk 0:02:23]} 14... Re8 {[%clk 0:03:00.9]} 15. d5 {[%clk 0:02:01.3]} 15...
Ne7 {[%clk 0:03:00.6]} 16. Bxa7 {[%clk 0:01:58.8]} 16... Rxa7 {[%clk 0:03:01.5]}
17. c4 {[%clk 0:01:59.4]} 17... bxc4 {[%clk 0:02:49.1]} 18. Bxc4 {[%clk
0:01:57.9]} 18... Ng6 {[%clk 0:02:50]} 19. b4 {[%clk 0:01:56]} 19... Nf4 {[%clk
0:02:45.2]} 20. Bf1 {[%clk 0:01:55.5]} 20... Nh7 {[%clk 0:02:35.2]} 21. Kh2
{[%clk 0:01:49.4]} 21... f5 {[%clk 0:02:32.4]} 22. g3 {[%clk 0:01:44.9]} 22...
Ng6 {[%clk 0:02:32.6]} 23. exf5 {[%clk 0:01:33.8]} 23... Bxf5 {[%clk 0:02:32.3]}
24. Ne4 {[%clk 0:01:25.1]} 24... Rf8 {[%clk 0:02:31.6]} 25. Nfd2 {[%clk
0:01:23.7]} 25... Nf6 {[%clk 0:02:23.2]} 26. Nxf6+ {[%clk 0:01:18.7]} 26... Qxf6
{[%clk 0:02:24]} 27. Ra2 {[%clk 0:01:18.8]} 27... Ne7 {[%clk 0:02:14.8]} 28. Ne4
{[%clk 0:01:16.9]} 28... Qf7 {[%clk 0:02:08]} 29. Bg2 {[%clk 0:01:08.2]} 29...
Kh8 {[%clk 0:02:07.1]} 30. Rd2 {[%clk 0:01:07]} 30... Rb7 {[%clk 0:02:06]} 31.
Qa4 {[%clk 0:01:02.9]} 31... Rfb8 {[%clk 0:02:01.6]} 32. Rb1 {[%clk 0:00:52.6]}
32... Qg6 {[%clk 0:01:53.3]} 33. f3 {[%clk 0:00:51.1]} 33... Ng8 {[%clk
0:01:46.3]} 34. Qc6 {[%clk 0:00:47.3]} 34... Ra7 {[%clk 0:01:28.6]} 35. b5
{[%clk 0:00:39.2]} 35... axb5 {[%clk 0:01:00.1]} 36. Rxb5 {[%clk 0:00:38.4]}
36... Rba8 {[%clk 0:01:00.8]} 37. Rb7 {[%clk 0:00:35.1]} 37... Bxe4 {[%clk
0:00:50.9]} 38. fxe4 {[%clk 0:00:33.7]} 38... Rxb7 {[%clk 0:00:51.2]} 39. Qxb7
{[%clk 0:00:33.1]} 39... Rxa5 {[%clk 0:00:51.7]} 40. Qxc7 {[%clk 0:00:33.6]}
40... Ra3 {[%clk 0:00:52.1]} 41. g4 {[%clk 0:00:28.9]} 41... Qf6 {[%clk
0:00:48.2]} 42. Rd1 {[%clk 0:00:20.5]} 42... Qf4+ {[%clk 0:00:46.7]} 43. Kh1
{[%clk 0:00:20.5]} 43... Rxh3+ {[%clk 0:00:29.7]} 44. Bxh3 {[%clk 0:00:19.9]}
44... Qf3+ {[%clk 0:00:30.1]} 45. Kh2 {[%clk 0:00:20.5]} 45... Qe2+ {[%clk
0:00:30]} 46. Bg2 {[%clk 0:00:19.6]} 46... Qxd1 {[%clk 0:00:28.8]} 47. Qxd6
{[%clk 0:00:20]} 47... Nf6 {[%clk 0:00:27.1]} 48. Qf8+ {[%clk 0:00:15.9]} 48...
Kh7 {[%clk 0:00:27.2]} 49. d6 {[%clk 0:00:16.4]} 49... Qxg4 {[%clk 0:00:20.8]}
50. Qe7 {[%clk 0:00:16.2]} 50... Qf4+ {[%clk 0:00:18.9]} 51. Kg1 {[%clk
0:00:12.9]} 51... Ng4 {[%clk 0:00:18.4]} 52. Qh4 {[%clk 0:00:10.5]} 52... Qc1+
{[%clk 0:00:15.6]} 53. Bf1 {[%clk 0:00:10.3]} 53... Qe3+ {[%clk 0:00:15.3]} 54.
Kh1 {[%clk 0:00:10.1]} 54... Qxe4+ {[%clk 0:00:14.7]} 55. Kg1 {[%clk 0:00:08.9]}
55... Qd4+ {[%clk 0:00:13.8]} 56. Kg2 {[%clk 0:00:06.9]} 56... Ne3+ {[%clk
0:00:13.8]} 57. Kh3 {[%clk 0:00:06.9]} 57... Qxh4+ {[%clk 0:00:12.6]} 58. Kxh4
{[%clk 0:00:07.3]} 58... Nf5+ {[%clk 0:00:13.2]} 0-1

[Event "*** Titled Tuesday Blitz"]
[Site "Chess.com"]
[Date "2020.05.12"]
[Round "5"]
[White "NemtsevIgor"]
[Black "Keks2017"]
[Result "1/2-1/2"]
[WhiteElo "2288"]
[BlackElo "2448"]
[TimeControl "180+1"]
[EndTime "10:56:30 PDT"]
[Termination "Game drawn by agreement"]

1. d4 {[%clk 0:03:00.9]} 1... d6 {[%clk 0:02:59.4]} 2. Nf3 {[%clk 0:02:59.4]}
2... Nf6 {[%clk 0:02:58.9]} 3. Bf4 {[%clk 0:02:58.7]} 3... g6 {[%clk 0:02:58.3]}
4. e3 {[%clk 0:02:58.6]} 4... Bg7 {[%clk 0:02:58]} 5. Be2 {[%clk 0:02:58.8]}
5... O-O {[%clk 0:02:58]} 6. O-O {[%clk 0:02:58.8]} 6... c5 {[%clk 0:02:57.9]}
7. c3 {[%clk 0:02:58.4]} 7... Be6 {[%clk 0:02:57.9]} 8. Nbd2 {[%clk 0:02:53.8]}
8... Qb6 {[%clk 0:02:57.7]} 9. Ng5 {[%clk 0:02:49.1]} 9... Bf5 {[%clk
0:02:55.3]} 10. Nc4 {[%clk 0:02:47.3]} 10... Qc7 {[%clk 0:02:52.5]} 11. Qb3
{[%clk 0:02:25.1]} 11... Nbd7 {[%clk 0:02:44.6]} 12. a4 {[%clk 0:02:15.4]} 12...
h6 {[%clk 0:02:40.1]} 13. Nf3 {[%clk 0:02:14.8]} 13... g5 {[%clk 0:02:39.8]} 14.
Bg3 {[%clk 0:02:14]} 14... Ne4 {[%clk 0:02:37.8]} 15. Rfd1 {[%clk 0:02:10.6]}
15... Nxg3 {[%clk 0:02:36]} 16. hxg3 {[%clk 0:02:10.2]} 16... Rfc8 {[%clk
0:02:29.5]} 17. d5 {[%clk 0:02:06.4]} 17... Nf6 {[%clk 0:02:20.5]} 18. Bd3
{[%clk 0:01:48.6]} 18... Bg4 {[%clk 0:02:02.7]} 19. e4 {[%clk 0:01:45.7]} 19...
Nd7 {[%clk 0:01:59.8]} 20. Ne3 {[%clk 0:01:30.7]} 20... Bxf3 {[%clk 0:01:54.2]}
21. gxf3 {[%clk 0:01:30.7]} 21... Ne5 {[%clk 0:01:48.5]} 22. Be2 {[%clk
0:01:30.7]} 22... Ng6 {[%clk 0:01:47.7]} 23. Nf5 {[%clk 0:01:29.9]} 23... Bf8
{[%clk 0:01:47.6]} 24. Kg2 {[%clk 0:01:27.4]} 24... c4 {[%clk 0:01:37.2]} 25.
Qc2 {[%clk 0:01:22.5]} 25... e6 {[%clk 0:01:37.1]} 26. dxe6 {[%clk 0:01:14.1]}
26... fxe6 {[%clk 0:01:36.9]} 27. Nd4 {[%clk 0:01:14.3]} 27... Qf7 {[%clk
0:01:36.3]} 28. a5 {[%clk 0:01:04.7]} 28... Rc5 {[%clk 0:01:30.5]} 29. a6 {[%clk
0:01:02.8]} 29... b6 {[%clk 0:01:29.5]} 30. Qa4 {[%clk 0:01:01]} 30... Rac8
{[%clk 0:01:25.1]} 31. Nb5 {[%clk 0:00:51.9]} 31... d5 {[%clk 0:01:21.7]} 32.
exd5 {[%clk 0:00:51.3]} 32... exd5 {[%clk 0:01:21.5]} 33. Nd4 {[%clk 0:00:44.2]}
33... Bg7 {[%clk 0:01:11.3]} 34. Rd2 {[%clk 0:00:42.6]} 34... Re8 {[%clk
0:00:45.6]} 35. Qc2 {[%clk 0:00:42]} 35... Ne5 {[%clk 0:00:44.2]} 36. Nf5 {[%clk
0:00:37.6]} 36... Bf8 {[%clk 0:00:41.9]} 37. Rad1 {[%clk 0:00:34.4]} 37... Rd8
{[%clk 0:00:26.7]} 38. Rh1 {[%clk 0:00:32.8]} 38... Rd6 {[%clk 0:00:25.9]} 39.
Qd1 {[%clk 0:00:32.7]} 39... Rf6 {[%clk 0:00:21.9]} 40. g4 {[%clk 0:00:32]}
40... Ng6 {[%clk 0:00:20.9]} 41. Rd4 {[%clk 0:00:30.6]} 41... Nf4+ {[%clk
0:00:20.8]} 42. Rxf4 {[%clk 0:00:31]} 42... gxf4 {[%clk 0:00:20.5]} 43. Qd4
{[%clk 0:00:31.7]} 43... Rxf5 {[%clk 0:00:17.8]} 44. gxf5 {[%clk 0:00:31.2]}
44... Qxf5 {[%clk 0:00:17.9]} 45. Kf1 {[%clk 0:00:29.7]} 45... Rc7 {[%clk
0:00:17.6]} 46. Rg1+ {[%clk 0:00:29.6]} 46... Rg7 {[%clk 0:00:17.3]} 47. Rg4
{[%clk 0:00:28.5]} 47... Rxg4 {[%clk 0:00:15.5]} 48. fxg4 {[%clk 0:00:28.8]}
48... Qe4 {[%clk 0:00:15.6]} 49. Qxe4 {[%clk 0:00:27.8]} 49... dxe4 {[%clk
0:00:15.7]} 50. Bxc4+ {[%clk 0:00:28.7]} 50... Kg7 {[%clk 0:00:16.1]} 51. Bd5
{[%clk 0:00:26.8]} 51... e3 {[%clk 0:00:16.3]} 52. fxe3 {[%clk 0:00:26.7]} 52...
fxe3 {[%clk 0:00:16.5]} 53. Ke2 {[%clk 0:00:27.1]} 53... Kf6 {[%clk 0:00:16.8]}
54. Kxe3 {[%clk 0:00:26.6]} 54... Ke5 {[%clk 0:00:17]} 55. Bb7 {[%clk
0:00:25.8]} 55... Be7 {[%clk 0:00:17.1]} 56. Kf3 {[%clk 0:00:25.4]} 56... Bg5
{[%clk 0:00:16.9]} 57. b3 {[%clk 0:00:23.4]} 57... Bd2 {[%clk 0:00:16.6]} 58. c4
{[%clk 0:00:22.9]} 58... Kd4 {[%clk 0:00:16.3]} 59. Bc6 {[%clk 0:00:23.1]} 59...
Bg5 {[%clk 0:00:15.8]} 60. Bb5 {[%clk 0:00:22.2]} 60... Bd2 {[%clk 0:00:15.8]}
61. Bc6 {[%clk 0:00:19.1]} 1/2-1/2

[Event "*** Titled Tuesday Blitz"]
[Site "Chess.com"]
[Date "2020.05.12"]
[Round "5"]
[White "Bubachess1608"]
[Black "ClassyEl"]
[Result "0-1"]
[WhiteElo "2309"]
[BlackElo "2519"]
[TimeControl "180+1"]
[EndTime "10:56:32 PDT"]
[Termination "ClassyEl won on time"]

1. e4 {[%clk 0:03:00.9]} 1... d6 {[%clk 0:02:59.4]} 2. f4 {[%clk 0:02:59.9]}
2... c5 {[%clk 0:02:56.8]} 3. Nf3 {[%clk 0:02:59.2]} 3... g6 {[%clk 0:02:57.1]}
4. g3 {[%clk 0:02:57.5]} 4... Bg7 {[%clk 0:02:57.3]} 5. Bg2 {[%clk 0:02:57.1]}
5... Nc6 {[%clk 0:02:58]} 6. d3 {[%clk 0:02:56.6]} 6... e6 {[%clk 0:02:58.5]} 7.
c3 {[%clk 0:02:54.7]} 7... Nge7 {[%clk 0:02:59]} 8. Be3 {[%clk 0:02:54.4]} 8...
O-O {[%clk 0:02:58.9]} 9. O-O {[%clk 0:02:53.1]} 9... Rb8 {[%clk 0:02:59.2]} 10.
a4 {[%clk 0:02:52]} 10... a6 {[%clk 0:02:59]} 11. Bf2 {[%clk 0:02:50.6]} 11...
b5 {[%clk 0:02:58.9]} 12. axb5 {[%clk 0:02:50.6]} 12... axb5 {[%clk 0:02:59]}
13. d4 {[%clk 0:02:50.3]} 13... cxd4 {[%clk 0:02:46.8]} 14. cxd4 {[%clk
0:02:49.8]} 14... b4 {[%clk 0:02:47.2]} 15. Nbd2 {[%clk 0:02:49.5]} 15... d5
{[%clk 0:02:42.2]} 16. e5 {[%clk 0:02:47.1]} 16... Qb6 {[%clk 0:02:42.1]} 17.
Nb3 {[%clk 0:02:45.9]} 17... Ba6 {[%clk 0:02:41.5]} 18. Re1 {[%clk 0:02:43.8]}
18... Ra8 {[%clk 0:02:27]} 19. Nc5 {[%clk 0:02:34.9]} 19... Rfd8 {[%clk
0:02:27]} 20. Qd2 {[%clk 0:02:24.7]} 20... b3 {[%clk 0:02:16.4]} 21. Ra3 {[%clk
0:02:15.5]} 21... Bc4 {[%clk 0:02:15.9]} 22. Rea1 {[%clk 0:02:12.9]} 22... Rxa3
{[%clk 0:02:07.3]} 23. Rxa3 {[%clk 0:02:12.4]} 23... Qb5 {[%clk 0:01:51.5]} 24.
g4 {[%clk 0:02:06.3]} 24... Bf8 {[%clk 0:01:45.4]} 25. Bh4 {[%clk 0:01:59.6]}
25... Rc8 {[%clk 0:01:39.2]} 26. Nd7 {[%clk 0:01:56.7]} 26... Qb4 {[%clk
0:01:29.7]} 27. Nxf8 {[%clk 0:01:49.6]} 27... Qxd2 {[%clk 0:01:22.6]} 28. Nxd2
{[%clk 0:01:46.7]} 28... Kxf8 {[%clk 0:01:23]} 29. Nxb3 {[%clk 0:01:20.9]} 29...
Rb8 {[%clk 0:01:04.4]} 30. Nc5 {[%clk 0:01:03.6]} 30... Kg7 {[%clk 0:00:55.8]}
31. Bf6+ {[%clk 0:00:52.7]} 31... Kg8 {[%clk 0:00:56.2]} 32. Bxe7 {[%clk
0:00:51.4]} 32... Nxe7 {[%clk 0:00:55.9]} 33. b3 {[%clk 0:00:51.7]} 33... Be2
{[%clk 0:00:56]} 34. h3 {[%clk 0:00:48.2]} 34... Nc6 {[%clk 0:00:56.1]} 35. f5
{[%clk 0:00:34.3]} 35... gxf5 {[%clk 0:00:51.4]} 36. gxf5 {[%clk 0:00:33.3]}
36... Nxd4 {[%clk 0:00:50.6]} 37. f6 {[%clk 0:00:30.5]} 37... h5 {[%clk
0:00:36.1]} 38. Kf2 {[%clk 0:00:29.5]} 38... Bd1 {[%clk 0:00:33.2]} 39. b4
{[%clk 0:00:23.7]} 39... Nf5 {[%clk 0:00:28.4]} 40. Nd7 {[%clk 0:00:19.8]} 40...
Rd8 {[%clk 0:00:22.6]} 41. Ra7 {[%clk 0:00:19.2]} 41... Ba4 {[%clk 0:00:20.7]}
42. Rxa4 {[%clk 0:00:16.1]} 42... Rxd7 {[%clk 0:00:21.1]} 43. Ra8+ {[%clk
0:00:15.8]} 43... Kh7 {[%clk 0:00:21.5]} 44. Bf3 {[%clk 0:00:15.6]} 44... Kg6
{[%clk 0:00:20.7]} 45. Rg8+ {[%clk 0:00:14.4]} 45... Kh6 {[%clk 0:00:21.2]} 46.
Rf8 {[%clk 0:00:14.3]} 46... h4 {[%clk 0:00:20.8]} 47. b5 {[%clk 0:00:13.1]}
47... Rb7 {[%clk 0:00:20.8]} 48. b6 {[%clk 0:00:11.2]} 48... Kg5 {[%clk
0:00:20.7]} 49. Rg8+ {[%clk 0:00:09.7]} 49... Kf4 {[%clk 0:00:21]} 50. Rg7
{[%clk 0:00:08.6]} 50... Kxe5 {[%clk 0:00:20.9]} 51. Bg4 {[%clk 0:00:05.8]}
51... Kxf6 {[%clk 0:00:21]} 52. Rg8 {[%clk 0:00:03.7]} 52... Rxb6 {[%clk
0:00:21]} 53. Bxf5 {[%clk 0:00:03.5]} 53... Kxf5 {[%clk 0:00:20.8]} 54. Rh8
{[%clk 0:00:02.7]} 54... Rb2+ {[%clk 0:00:20.6]} 55. Kf3 {[%clk 0:00:02.2]}
55... Rb3+ {[%clk 0:00:20.6]} 56. Kg2 {[%clk 0:00:02.3]} 56... Rb4 {[%clk
0:00:21]} 0-1